Workbook

Sheet Bandits
A1: 2016 BOJANGLES SUMMER SHOOTOUT SERIES - CHAMPIONSHIP STANDINGS
A2: 2016-06-14
A3: (After Round 7 of 10 - July 19, 2016) | H3: Weekly Finishes | S3: Weekly Points
A4: BANDITS | D4: Races | E4: Total | F4: Points | G4: Average | H4: 2016-06-14 | I4: 2016-06-20 | J4: 2016-06-21 | K4: 2016-06-28 | L4: 2016-07-05 | M4: 2016-07-12 | N4: 2016-07-19 | O4: 2016-07-26 | P4: 2016-08-01 | Q4: 2016-08-02 | R4: 2015-07-27 | S4: 2016-06-14 | T4: 2016-06-20 | U4: 2016-06-21 | V4: 2016-06-28 | W4: 2016-07-05 | X4: 2016-07-12 | Y4: 2016-07-19 | Z4: 2016-07-26 | AA4: 2016-08-01 | AB4: 2016-08-02
A5: Pos. | B5: Car # | C5: Driver | D5: Entered | E5: Points | F5: Back | G5: Finish
A6: 1 | B6: 24 | C6: Bryson Ruff | D6: =COUNTA(H6:Q6) -> 7 | E6: =SUM(S6:AB6) -> 282 | F6: =E6-$E$6 -> 0 | G6: =AVERAGEA(H6:Q6) -> 3.142857143 | H6: 3 | I6: 1 | J6: 9 | K6: 2 | L6: 2 | M6: 4 | N6: 1 | S6: 45 | T6: 51 | V6: 46 | W6: 46 | X6: 44 | Y6: 50
A7: =A6+1 -> 2 | B7: 67 | C7: Cameron Bolin | D7: 7 | E7: 278 | F7: -4 | G7: 3.857142857 | H7: 2 | I7: 3 | J7: 12 | K7: 1 | L7: 5 | M7: 1 | N7: 3 | S7: 45 | T7: 44 | U7: 1 | V7: 50 | W7: 43 | X7: 51 | Y7: 44
A8: 3 | B8: 44 | C8: Josh Kossek | D8: 7 | E8: 277 | F8: -5 | G8: 3.714285714 | H8: 1 | I8: 2 | J8: 8 | K8: 10 | L8: 1 | M8: 2 | N8: 2 | S8: 51 | T8: 46 | U8: 39 | W8: 50 | X8: 45 | Y8: 46
A9: 4 | B9: 22 | C9: William Robusto | D9: 7 | E9: 256 | F9: -26 | G9: 5.428571429 | H9: 5 | I9: 4 | J9: 10 | K9: 5 | L9: 4 | M9: 6 | N9: 4 | S9: 42 | T9: 43 | U9: 1 | V9: 42 | W9: 43 | X9: 41 | Y9: 44
A10: 5 | B10: 54 | C10: Josh Speas | D10: 7 | E10: 254 | F10: -28 | G10: 5.857142857 | H10: 6 | I10: 6 | J10: 1 | K10: 9 | L10: 8 | M10: 5 | N10: 6 | S10: 41 | T10: 41 | U10: 50 | W10: 39 | X10: 42 | Y10: 41
A11: 6 | B11: 28 | C11: Landon Rapp | D11: 7 | E11: 243 | F11: -39 | G11: 7.571428571 | H11: 12 | I11: 7 | J11: 13 | K11: 4 | L11: 6 | M11: 3 | N11: 8 | S11: 35 | T11: 40 | V11: 44 | W11: 41 | X11: 44 | Y11: 39
A12: 7 | B12: 14 | C12: Conner Jones | D12: 6 | E12: 236 | F12: -46 | G12: 7.666666667 | H12: 8 | I12: 11 | J12: 7 | K12: 6 | M12: 7 | N12: 7 | S12: 39 | T12: 36 | U12: 40 | V12: 41 | X12: 40 | Y12: 40
A13: 8 | B13: 19 | C13: Jaiden Reyna | D13: 6 | E13: 232 | F13: -50 | G13: 8.333333333 | H13: 10 | I13: 9 | J13: 6 | K13: 7 | M13: 9 | N13: 9 | S13: 37 | T13: 38 | U13: 41 | V13: 40 | X13: 38 | Y13: 38
A14: 9 | B14: 4 | C14: Leland Honeyman | D14: 5 | E14: 205 | F14: -77 | G14: 6 | H14: 4 | I14: 5 | J14: 11 | K14: 3 | L14: 7 | S14: 43 | T14: 42 | U14: 36 | V14: 44 | W14: 40
A15: 10 | B15: 41 | C15: Tyler Chapman | D15: 4 | E15: 165 | F15: -117 | G15: 5.75 | H15: 7 | J15: 3 | L15: 3 | M15: 10 | S15: 40 | U15: 44 | W15: 44 | X15: 37
A16: 11 | B16: 4H | C16: Holt Halder | D16: 4 | E16: 157 | F16: -125 | G16: 7.75 | H16: 11 | I16: 10 | J16: 2 | K16: 8 | S16: 36 | T16: 37 | U16: 45 | V16: 39
A17: 12 | B17: 44J | C17: Jason Chapman | D17: 4 | E17: 157 | F17: -125 | G17: 7.75 | H17: 9 | J17: 5 | L17: 9 | M17: 8 | S17: 38 | U17: 42 | W17: 38 | X17: 39
A18: 13 | B18: 23 | C18: Bryce Bailey | D18: 2 | E18: 82 | F18: -200 | G18: 6 | I18: 8 | J18: 4 | T18: 39 | U18: 43
A19: =A18+1 -> 14 | B19: 4E | C19: Parker Eatmon | D19: 2 | E19: 78 | F19: -204 | G19: 8 | M19: 11 | N19: 5 | X19: 36 | Y19: 42
A20: 15 | B20: 17 | C20: George Hayes | D20: 1 | E20: 35 | F20: -247 | G20: 12 | I20: 12 | T20: 35
A21: 16 | D21: 0 | E21: 0 | F21: -282
A22: 17 | D22: =COUNTA(H22:Q22) -> 0 | E22: =SUM(S22:AB22) -> 0 | F22: =E22-$E$6 -> -282 | G22: =AVERAGEA(H22:Q22) -> 
A23: 18 | D23: 0 | E23: 0 | F23: -282
A24: 19 | D24: 0 | E24: 0 | F24: -282
A25: 20 | D25: 0 | E25: 0 | F25: -282
A26: 21 | D26: 0 | E26: 0 | F26: -282
A27: 22 | D27: =COUNTA(H27:Q27) -> 0 | E27: =SUM(S27:AB27) -> 0 | F27: =E27-$E$6 -> -282 | G27: =AVERAGEA(H27:Q27) -> 
A28: 23 | D28: 0 | E28: 0 | F28: -282
A29: 24
A30: 25
A31: 26
H32: =COUNTA(H6:H31) -> 12 | I32: 12 | J32: 13 | K32: 10 | L32: 9 | M32: 11 | N32: 9 | O32: 0 | P32: 0 | Q32: 0
A33: Total Events | D33: 7
A34: Track Point Races | D34: 7 | S34: HEAT RACE WINNERS IN BOLD ON POINTS
A35: Avg. Entries | D35: =SUM(H32:Q32)/7 -> 10.85714286

Sheet Outlaws
A1: 2016 BOJANGLES SUMMER SHOOTOUT SERIES - CHAMPIONSHIP STANDINGS
A3: (After Round 7 of 10 - July 19, 2016) | H3: Weekly Finishes | S3: Weekly Points
A4: OUTLAWS | D4: Races | E4: Total | F4: Points | G4: Average | H4: 2016-06-14 | I4: 2016-06-20 | J4: 2016-06-21 | K4: 2016-06-28 | L4: 2016-07-05 | M4: 2016-07-12 | N4: 2016-07-19 | O4: 2016-07-26 | P4: 2016-08-01 | Q4: 2016-08-02 | R4: 00:00:00 | S4: 2016-06-14 | T4: 2016-06-20 | U4: 2016-06-21 | V4: 2016-06-28 | W4: 2016-07-05 | X4: 2016-07-12 | Y4: 2016-07-19 | Z4: 2016-07-26 | AA4: 2016-08-01 | AB4: 2016-08-02
A5: Pos. | B5: Car # | C5: Driver | D5: Entered | E5: Points | F5: Back | G5: Finish
A6: 1 | B6: 10 | C6: Matthew Davey | D6: =COUNTA(H6:Q6) -> 7 | E6: =SUM(S6:AB6) -> 282 | F6: =E6-$E$6 -> 0 | G6: =AVERAGEA(H6:Q6) -> 2.142857143 | H6: 3 | I6: 1 | J6: 3 | K6: 3 | L6: 1 | M6: 1 | N6: 3 | T6: 50 | U6: 44 | V6: 44 | W6: 50 | X6: 50 | Y6: 44
A7: =A6+1 -> 2 | B7: 29 | C7: D J Canipe | D7: 7 | E7: 275 | F7: -7 | G7: 4.857142857 | H7: 1 | I7: 2 | J7: 4 | K7: 1 | L7: 3 | M7: 9 | N7: 14 | S7: 51 | T7: 46 | U7: 44 | V7: 51 | W7: 45 | X7: 38
A8: 3 | B8: 19 | C8: Tommy Good | D8: 7 | E8: 269 | F8: -13 | G8: 3.571428571 | H8: 5 | I8: 3 | J8: 1 | K8: 2 | L8: 5 | M8: 3 | N8: 6 | S8: 42 | T8: 44 | U8: 51 | V8: 45 | W8: 42 | X8: 45
A9: 4 | B9: 11 | C9: Matthew Emery | D9: 7 | E9: 266 | F9: -16 | G9: 4.571428571 | H9: 4 | I9: 11 | J9: 6 | K9: 4 | L9: 4 | M9: 2 | N9: 1 | S9: 43 | U9: 41 | V9: 43 | W9: 43 | X9: 45 | Y9: 51
A10: 5 | B10: 47 | C10: Blaize Maddox | D10: 7 | E10: 255 | F10: -27 | G10: 5.857142857 | H10: 7 | I10: 13 | J10: 2 | K10: 5 | L10: 2 | M10: 8 | N10: 4 | S10: 40 | U10: 45 | V10: 42 | W10: 45 | X10: 39 | Y10: 44
A11: 6 | B11: 53 | C11: Justin Gareis | D11: 7 | E11: 233 | F11: -49 | G11: 9 | H11: 13 | I11: 9 | J11: 11 | K11: 8 | L11: 8 | M11: 6 | N11: 8 | T11: 38 | U11: 36 | V11: 39 | W11: 40 | X11: 41 | Y11: 39
A12: 7 | B12: 26 | C12: Dylan Notaro | D12: 7 | E12: 231 | F12: -51 | G12: 8.857142857 | H12: 8 | I12: 8 | J12: 9 | K12: 6 | L12: 11 | M12: 11 | N12: 9 | S12: 39 | T12: 39 | U12: 38 | V12: 41 | X12: 36 | Y12: 38
A13: 8 | B13: 32 | C13: Tristan Leslk | D13: 6 | E13: 228 | F13: -54 | G13: 9.5 | H13: 2 | I13: 14 | K13: 14 | L13: 10 | M13: 5 | N13: 12 | S13: 46 | T13: 34 | V13: 33 | W13: 37 | X13: 43 | Y13: 35
A14: 9 | B14: 9 | C14: Liz Montgomery | D14: 6 | E14: 221 | F14: -61 | G14: 10.16666667 | H14: 6 | I14: 18 | J14: 12 | K14: 11 | M14: 7 | N14: 7 | S14: 41 | T14: 29 | U14: 35 | V14: 36 | X14: 40 | Y14: 40
A15: 10 | B15: 22 | C15: Jordan Plummer | D15: 6 | E15: 220 | F15: -62 | G15: 10.33333333 | I15: 6 | J15: 7 | K15: 9 | L15: 15 | M15: 12 | N15: 13 | T15: 41 | U15: 40 | V15: 38 | W15: 32 | X15: 35 | Y15: 34
A16: 11 | B16: 15 | C16: Cameron Johnson | D16: 6 | E16: 219 | F16: -63 | G16: 10.5 | I16: 10 | J16: 10 | K16: 7 | L16: 6 | M16: 14 | N16: 16 | T16: 37 | U16: 37 | V16: 40 | W16: 41 | X16: 33 | Y16: 31
A17: 12 | B17: 6 | C17: Isaak Love | D17: 7 | E17: 206 | F17: -76 | G17: 8.428571429 | H17: 9 | I17: 7 | J17: 8 | K17: 13 | L17: 16 | M17: 4 | N17: 2 | S17: 38 | T17: 40 | U17: 39 | V17: 1 | X17: 43 | Y17: 45
A18: 13 | B18: 08 | C18: Trevor Wester | D18: 6 | E18: 194 | F18: -88 | G18: 14.66666667 | H18: 12 | I18: 16 | J18: 20 | K18: 12 | M18: 13 | N18: 15 | S18: 35 | T18: 31 | U18: 27 | V18: 35 | X18: 34 | Y18: 32
A19: 14 | B19: 52 | C19: Jacob Gantz | D19: 5 | E19: 179 | F19: -103 | G19: 11.2 | H19: 11 | J19: 15 | K19: 10 | L19: 9 | N19: 11 | S19: 36 | U19: 32 | V19: 37 | W19: 38 | Y19: 36
A20: 15 | B20: 35 | C20: Hayden Swank | D20: 5 | E20: 164 | F20: -118 | G20: 14.2 | H20: 10 | I20: 15 | J20: 13 | K20: 16 | N20: 17 | S20: 37 | T20: 32 | U20: 34 | V20: 31 | Y20: 30
A21: 16 | B21: 14 | C21: Ashley Pantoulas | D21: 4 | E21: 129 | F21: -153 | G21: 14.75 | H21: 15 | I21: 12 | J21: 19 | L21: 13 | S21: 32 | T21: 35 | U21: 28 | W21: 34
A22: 17 | B22: 03 | C22: Ethan Elder | D22: 4 | E22: 126 | F22: -156 | G22: 15.5 | H22: 14 | I22: 19 | J22: 14 | K22: 15 | S22: 33 | T22: 28 | U22: 33 | V22: 32
A23: 18 | B23: 6L | C23: Garrett Lowe | D23: 3 | E23: 109 | F23: -173 | G23: 10.66666667 | L23: 12 | M23: 10 | N23: 10 | W23: 35 | X23: 37 | Y23: 37
A24: 19 | B24: 24 | C24: Blaise Brinkley | D24: 3 | E24: 103 | F24: -179 | G24: 12.66666667 | H24: 16 | I24: 4 | J24: 18 | S24: 31 | T24: 43 | U24: 29
A25: 20 | B25: 77 | C25: Jason Alder | D25: 2 | E25: 84 | F25: -198 | G25: 5 | I25: 5 | J25: 5 | T25: 42 | U25: 42
A26: 21 | B26: 88 | C26: Nathan Blackburn | D26: 2 | E26: 61 | F26: -221 | G26: 16.5 | I26: 17 | J26: 16 | T26: 30 | U26: 31
A27: 22 | B27: 71 | C27: Garrett Zacharias | D27: 2 | E27: 57 | F27: -225 | G27: 18.5 | I27: 20 | J27: 17 | T27: 27 | U27: 30
A28: 23 | B28: 24F | C28: Carson Ferguson | D28: 1 | E28: 42 | F28: -240 | G28: 5 | N28: 5 | Y28: 42
A29: 24 | B29: 66 | C29: Gauntt Hudgins | D29: 1 | E29: 40 | F29: -242 | G29: 7 | L29: 7 | W29: 40
A30: 25 | B30: 00 | C30: Raven Lewis | D30: 1 | E30: 33 | F30: -249 | G30: 14 | L30: 14 | W30: 33
A31: 26 | D31: 0 | E31: 0 | F31: -282
A32: 27 | D32: 0 | E32: 0 | F32: -282
A33: 28 | D33: 0 | E33: 0 | F33: -282
A34: 29 | D34: 0 | E34: 0 | F34: -282
A35: 30 | D35: 0 | E35: 0 | F35: -282
A36: 31
A37: 32
A38: 33
A39: 34
H40: =COUNTA(H6:H39) -> 16 | I40: 20 | J40: 20 | K40: 16 | L40: 16 | M40: 14 | N40: 17 | O40: 0 | P40: 0 | Q40: 0 | S40: =COUNTA(S6:S39) -> 14 | T40: =COUNTA(T6:T39) -> 18 | U40: 20 | V40: 16 | W40: 14 | X40: 14 | Y40: 15 | Z40: 0 | AA40: 0 | AB40: 0
A41: Total Events | D41: 7
A42: Track Point Races | D42: 7 | X42: HEAT RACE WINNERS IN BOLD ON POINTS
A43: Avg. Entries | D43: =SUM(H40:Q40)/7 -> 17

Sheet Young Lions
A1: 2016 BOJANGLES SUMMER SHOOTOUT SERIES - CHAMPIONSHIP STANDINGS
A3: (After Round 7 of 10 - July 19, 2016) | H3: Weekly Finishes | S3: Weekly Points
A4: K1 SPEED YOUNG LIONS | D4: Races | E4: Total | F4: Points | G4: Average | H4: 2016-06-14 | I4: 2016-06-20 | J4: 2016-06-21 | K4: 2016-06-28 | L4: 2016-07-05 | M4: 2016-07-12 | N4: 2016-07-19 | O4: 2016-07-26 | P4: 2016-08-01 | Q4: 2016-08-02 | R4: 00:00:00 | S4: 2016-06-14 | T4: 2016-06-20 | U4: 2016-06-21 | V4: 2016-06-28 | W4: 2016-07-05 | X4: 2016-07-12 | Y4: 2016-07-19 | Z4: 2016-07-26 | AA4: 2016-08-01 | AB4: 2016-08-02
A5: Pos. | B5: Car # | C5: Driver | D5: Entered | E5: Points | F5: Back | G5: Finish
A6: 1 | B6: 77 | C6: Giovanni Bromante | D6: =COUNTA(H6:Q6) -> 7 | E6: =SUM(S6:AB6) -> 272 | F6: =E6-$E$6 -> 0 | G6: =AVERAGEA(H6:Q6) -> 6 | H6: 17 | I6: 1 | J6: 7 | K6: 1 | L6: 11 | M6: 4 | N6: 1 | T6: 50 | U6: 41 | V6: 51 | W6: 37 | X6: 43 | Y6: 50
A7: 2 | B7: 9 | C7: Ashton Higgins | D7: 7 | E7: 272 | F7: 0 | G7: 5 | H7: 1 | I7: 8 | J7: 2 | K7: 17 | L7: 1 | M7: 2 | N7: 4 | S7: 50 | T7: 39 | U7: 45 | W7: 50 | X7: 45 | Y7: 43
A8: 3 | B8: 51 | C8: Eddie Fatscher | D8: 7 | E8: 269 | F8: -3 | G8: 6.142857143 | H8: 16 | I8: 2 | J8: 1 | K8: 2 | L8: 2 | M8: 1 | N8: 19 | S8: 32 | T8: 45 | U8: 50 | V8: 45 | W8: 45 | X8: 51 | Y8: 1
A9: 4 | B9: 43 | C9: Brody Pope | D9: 7 | E9: 260 | F9: -12 | G9: 5.857142857 | H9: 2 | I9: 4 | J9: 5 | K9: 4 | L9: 7 | M9: 17 | N9: 2 | S9: 45 | T9: 44 | U9: 42 | V9: 43 | W9: 40 | Y9: 46
A10: 5 | B10: 14 | C10: Vincent Midas | D10: 7 | E10: 250 | F10: -22 | G10: 6.142857143 | H10: 5 | I10: 6 | J10: 11 | K10: 6 | L10: 3 | M10: 3 | N10: 9 | S10: 42 | T10: 41 | V10: 41 | W10: 44 | X10: 44 | Y10: 38
A11: 6 | B11: 1 | C11: Garrett Manes | D11: 7 | E11: 241 | F11: -31 | G11: 8.428571429 | H11: 10 | I11: 12 | J11: 4 | K11: 5 | L11: 16 | M11: 5 | N11: 7 | S11: 38 | T11: 35 | U11: 43 | V11: 42 | W11: 1 | X11: 42 | Y11: 40
A12: 7 | B12: 92 | C12: Alex Verhagan | D12: 7 | E12: 239 | F12: -33 | G12: 8.857142857 | H12: 18 | I12: 11 | J12: 3 | K12: 12 | L12: 4 | M12: 8 | N12: 6 | T12: 36 | U12: 44 | V12: 35 | W12: 43 | X12: 40 | Y12: 41
A13: 8 | B13: 12 | C13: Sammy Smith | D13: 7 | E13: 229 | F13: -43 | G13: 9.571428571 | H13: 7 | I13: 14 | J13: 9 | K13: 11 | L13: 6 | M13: 7 | N13: 13 | S13: 40 | U13: 38 | V13: 36 | W13: 41 | X13: 40 | Y13: 34
A14: 9 | B14: 22 | C14: Sam Mayer | D14: 7 | E14: 228 | F14: -44 | G14: 10.85714286 | H14: 4 | I14: 22 | J14: 8 | K14: 8 | L14: 10 | M14: 16 | N14: 8 | S14: 43 | U14: 39 | V14: 39 | W14: 37 | X14: 31 | Y14: 39
A15: 10 | B15: 38 | C15: Hailie Deegan | D15: 7 | E15: 209 | F15: -63 | G15: 13.28571429 | H15: 13 | I15: 20 | J15: 15 | K15: 16 | L15: 8 | M15: 9 | N15: 12 | S15: 34 | U15: 32 | V15: 31 | W15: 39 | X15: 38 | Y15: 35
A16: 11 | B16: 90 | C16: Daniel Wilk | D16: 7 | E16: 206 | F16: -66 | G16: 13.28571429 | H16: 14 | I16: 16 | J16: 13 | K16: 9 | L16: 17 | M16: 13 | N16: 11 | S16: 33 | T16: 31 | U16: 34 | V16: 38 | X16: 34 | Y16: 36
A17: 12 | B17: 11 | C17: Gracie Trotter | D17: 7 | E17: 202 | F17: -70 | G17: 14.28571429 | H17: 19 | I17: 10 | J17: 10 | K17: 18 | L17: 15 | M17: 18 | N17: 10 | T17: 37 | U17: 37 | V17: 30 | W17: 32 | X17: 29 | Y17: 37
A18: 13 | B18: 15 | C18: Roy Hayes | D18: 6 | E18: 201 | F18: -71 | G18: 13.5 | H18: 15 | I18: 9 | J18: 17 | K18: 20 | M18: 6 | N18: 14 | S18: 32 | T18: 38 | U18: 30 | V18: 27 | X18: 41 | Y18: 33
A19: 14 | B19: 18 | C19: Ryan Heim | D19: 7 | E19: 201 | F19: -71 | G19: 14.14285714 | H19: 8 | I19: 15 | J19: 14 | K19: 14 | L19: 18 | M19: 14 | N19: 16 | S19: 39 | T19: 32 | U19: 33 | V19: 33 | X19: 33 | Y19: 31
A20: 15 | B20: 55 | C20: Isabella Rubuston | D20: 7 | E20: 200 | F20: -72 | G20: 14.42857143 | H20: 9 | I20: 17 | J20: 19 | K20: 13 | L20: 13 | M20: 12 | N20: 18 | S20: 38 | T20: 30 | V20: 34 | W20: 34 | X20: 35 | Y20: 29
A21: 16 | B21: 35 | C21: Carson Kvapil | D21: 5 | E21: 191 | F21: -81 | G21: 9.2 | H21: 3 | I21: 7 | J21: 18 | K21: 3 | M21: 15 | S21: 44 | T21: 42 | U21: 29 | V21: 44 | X21: 32
A22: 17 | B22: 20 | C22: Austin Geer | D22: 5 | E22: 175 | F22: -97 | G22: 12 | H22: 20 | K22: 10 | L22: 5 | M22: 10 | N22: 15 | S22: 27 | V22: 37 | W22: 42 | X22: 37 | Y22: 32
A23: 18 | B23: 1CT | C23: Steven Chapman | D23: 4 | E23: 145 | F23: -127 | G23: 10.75 | H23: 11 | J23: 12 | L23: 9 | M23: 11 | S23: 36 | U23: 35 | W23: 38 | X23: 36
A24: 19 | B24: 44 | C24: Seth Henry | D24: 4 | E24: 134 | F24: -138 | G24: 13.5 | I24: 19 | J24: 16 | K24: 7 | L24: 12 | T24: 28 | U24: 31 | V24: 40 | W24: 35
A25: 20 | B25: 20RB | C25: Harrison Halder | D25: 4 | E25: 133 | F25: -139 | G25: 13.75 | H25: 6 | I25: 13 | J25: 21 | K25: 15 | S25: 41 | T25: 34 | U25: 26 | V25: 32
A26: 21 | B26: 66 | C26: Zack Wells | D26: 3 | E26: 111 | F26: -161 | G26: 10 | I26: 5 | J26: 22 | N26: 3 | T26: 42 | U26: 25 | Y26: 44
A27: 22 | B27: 10M | C27: Alex McCollum | D27: 2 | E27: 72 | F27: -200 | G27: 11.5 | I27: 3 | J27: 20 | T27: 44 | U27: 28
A28: 23 | B28: 17 | C28: Jake Johnson | D28: 2 | E28: 70 | F28: -202 | G28: 12 | I28: 18 | J28: 6 | T28: 29 | U28: 41
A29: 24 | B29: 39 | C29: Josh Stark | D29: 2 | E29: 63 | F29: -209 | G29: 15.5 | L29: 14 | N29: 17 | W29: 33 | Y29: 30
A30: 25 | B30: 10 | C30: Jack Fread | D30: 2 | E30: 61 | F30: -211 | G30: 16.5 | H30: 12 | I30: 21 | S30: 35 | T30: 26
A31: 26 | B31: 84 | C31: Kyle Craker | D31: 2 | E31: 56 | F31: -216 | G31: 19 | K31: 19 | L31: 19 | V31: 28 | W31: 28
A32: 27 | B32: 51L | C32: Braden Langille | D32: 1 | E32: 42 | F32: -230 | G32: 5 | N32: 5 | Y32: 42
A33: 28 | D33: 0 | E33: 0 | F33: -272
A34: 29 | D34: 0 | E34: 0 | F34: -272
A35: 30 | D35: 0 | E35: 0 | F35: -272
H36: =COUNTA(H6:H35) -> 20 | I36: 22 | J36: 22 | K36: 20 | L36: 19 | M36: 18 | N36: 19 | O36: 0 | P36: 0 | Q36: 0 | S36: =COUNTA(S6:S35) -> 17 | T36: 19 | U36: 20 | V36: 19 | W36: 17 | X36: 17 | Y36: 19 | Z36: 0 | AA36: 0 | AB36: 0
A37: Total Events | D37: 7
A38: Track Point Races | D38: 7 | X38: HEAT RACE WINNERS IN BOLD ON POINTS
A39: Avg. Entries | D39: =SUM(H36:Q36)/7 -> 20

Sheet Semi-Pro
A1: 2016 BOJANGLES SUMMER SHOOTOUT SERIES - CHAMPIONSHIP STANDINGS
A3: (After Round 7 of 10 - July 19, 2016) | I3: Weekly Finishes | T3: Weekly Points | AE3: Weekly Earnings
A4: AAA CAROLINAS SEMI PRO | D4: Races | E4: Total | F4: Points | G4: Average | H4: Total | I4: 2016-06-14 | J4: 2016-06-20 | K4: 2016-06-21 | L4: 2016-06-28 | M4: 2016-07-05 | N4: 2016-07-12 | O4: 2016-07-19 | P4: 2016-07-26 | Q4: 2016-08-01 | R4: 2016-08-02 | S4: 00:00:00 | T4: 2016-06-14 | U4: 2016-06-20 | V4: 2016-06-21 | W4: 2016-06-28 | X4: 2016-07-05 | Y4: 2016-07-12 | Z4: 2016-07-19 | AA4: 2016-07-26 | AB4: 2016-08-01 | AC4: 2016-08-02 | AE4: 2016-06-14 | AF4: 2016-06-20 | AG4: 2016-06-21 | AH4: 2016-06-28 | AI4: 2016-07-05 | AJ4: 2016-07-12 | AK4: 2016-07-19 | AL4: 2016-07-26 | AM4: 2016-08-01 | AN4: 2016-08-02
A5: Pos. | B5: Car # | C5: Driver | D5: Entered | E5: Points | F5: Back | G5: Finish | H5: Earnings
A6: 1 | B6: 56 | C6: Gus Dean | D6: =COUNTA(I6:R6) -> 7 | E6: =SUM(T6:AD6) -> 269 | F6: =E6-$E$6 -> 0 | G6: =AVERAGEA(I6:R6) -> 6 | H6: =SUM(AE6:AN6) -> 520 | I6: 25 | J6: 1 | K6: 4 | L6: 4 | M6: 2 | N6: 3 | O6: 3 | U6: 50 | V6: 43 | W6: 43 | X6: 45 | Y6: 44 | Z6: 44 | AF6: 150 | AG6: 60 | AH6: 60 | AI6: 100 | AJ6: 75 | AK6: 75
A7: =A6+1 -> 2 | B7: 24 | C7: Matt Mead | D7: 7 | E7: 268 | F7: -1 | G7: 7.714285714 | H7: 585 | I7: 23 | J7: 8 | K7: 18 | L7: 1 | M7: 1 | N7: 2 | O7: 1 | T7: 1 | U7: 39 | V7: 29 | W7: 51 | X7: 51 | Y7: 46 | Z7: 51 | AF7: 25 | AG7: 10 | AH7: 150 | AI7: 150 | AJ7: 100 | AK7: 150
A8: 3 | B8: 69 | C8: Tyler Truex | D8: 7 | E8: 260 | F8: -9 | G8: 6.857142857 | H8: 505 | I8: 14 | J8: 2 | K8: 21 | L8: 2 | M8: 6 | N8: 1 | O8: 2 | T8: 33 | U8: 45 | V8: 1 | W8: 45 | X8: 41 | Y8: 50 | Z8: 45 | AE8: 15 | AF8: 100 | AH8: 100 | AI8: 40 | AJ8: 150 | AK8: 100
A9: 4 | B9: 52 | C9: Jordan Stillwell | D9: 7 | E9: 254 | F9: -15 | G9: 7.285714286 | H9: 450 | I9: 2 | J9: 3 | K9: 1 | L9: 3 | M9: 19 | N9: 15 | O9: 8 | T9: 45 | U9: 44 | V9: 50 | W9: 44 | Y9: 32 | Z9: 39 | AE9: 100 | AF9: 75 | AG9: 150 | AH9: 75 | AI9: 10 | AJ9: 15 | AK9: 25
A10: 5 | B10: 2 | C10: Grant Winchester | D10: 7 | E10: 247 | F10: -22 | G10: 7.571428571 | H10: 315 | I10: 6 | J10: 4 | K10: 2 | L10: 18 | M10: 12 | N10: 5 | O10: 6 | T10: 41 | U10: 43 | V10: 45 | X10: 35 | Y10: 42 | Z10: 41 | AE10: 40 | AF10: 60 | AG10: 100 | AH10: 10 | AI10: 15 | AJ10: 50 | AK10: 40
A11: 6 | B11: 00 | C11: Craig Biryla | D11: 7 | E11: 246 | F11: -23 | G11: 6.285714286 | H11: 265 | I11: 7 | J11: 6 | K11: 5 | L11: 8 | M11: 5 | N11: 6 | O11: 7 | T11: 40 | U11: 41 | V11: 42 | X11: 42 | Y11: 41 | Z11: 40 | AE11: 30 | AF11: 40 | AG11: 50 | AH11: 25 | AI11: 50 | AJ11: 40 | AK11: 30
A12: 7 | B12: 17 | C12: Scott Joy | D12: 7 | E12: 240 | F12: -29 | G12: 7.428571429 | H12: 230 | I12: 10 | J12: 5 | K12: 6 | L12: 9 | M12: 9 | N12: 4 | O12: 9 | U12: 42 | V12: 41 | W12: 38 | X12: 38 | Y12: 43 | Z12: 38 | AE12: 20 | AF12: 50 | AG12: 40 | AH12: 20 | AI12: 20 | AJ12: 60 | AK12: 20
A13: 8 | B13: 88 | C13: Dustin Rumley | D13: 6 | E13: 236 | F13: -33 | G13: 7.666666667 | H13: 200 | I13: 4 | J13: 7 | K13: 9 | M13: 4 | N13: 11 | O13: 11 | T13: 43 | U13: 40 | V13: 38 | X13: 43 | Y13: 36 | Z13: 36 | AE13: 60 | AF13: 30 | AG13: 20 | AI13: 60 | AJ13: 15 | AK13: 15
A14: 9 | B14: 95 | C14: Jacob Heafner | D14: 7 | E14: 231 | F14: -38 | G14: 10.71428571 | H14: 295 | I14: 1 | J14: 17 | K14: 20 | L14: 7 | M14: 18 | N14: 8 | O14: 4 | T14: 50 | U14: 30 | W14: 40 | X14: 29 | Y14: 39 | Z14: 43 | AE14: 150 | AF14: 10 | AG14: 10 | AH14: 30 | AI14: 10 | AJ14: 25 | AK14: 60
A15: 10 | B15: 34 | C15: Nolan Pope | D15: 7 | E15: 229 | F15: -40 | G15: 10.71428571 | H15: 180 | I15: 22 | J15: 9 | K15: 17 | L15: 5 | M15: 7 | N15: 10 | O15: 5 | U15: 38 | V15: 30 | W15: 42 | X15: 40 | Y15: 37 | Z15: 42 | AF15: 20 | AG15: 10 | AH15: 50 | AI15: 30 | AJ15: 20 | AK15: 50
A16: 11 | B16: 1 | C16: Jessica Dana | D16: 7 | E16: 208 | F16: -61 | G16: 13.42857143 | H16: 155 | I16: 17 | J16: 13 | K16: 15 | L16: 20 | M16: 3 | N16: 16 | O16: 10 | T16: 30 | U16: 34 | V16: 32 | X16: 44 | Y16: 31 | Z16: 37 | AE16: 10 | AF16: 15 | AG16: 15 | AH16: 10 | AI16: 75 | AJ16: 10 | AK16: 20
A17: 12 | B17: 16 | C17: Josh Plummer | D17: 6 | E17: 196 | F17: -73 | G17: 14.33333333 | H17: 85 | J17: 20 | K17: 14 | L17: 12 | M17: 13 | N17: 12 | O17: 15 | U17: 27 | V17: 33 | W17: 35 | X17: 34 | Y17: 35 | Z17: 32 | AF17: 10 | AG17: 15 | AH17: 15 | AI17: 15 | AJ17: 15 | AK17: 15
A18: 13 | B18: 14 | C18: Ryo Ogata | D18: 7 | E18: 190 | F18: -79 | G18: 16.28571429 | H18: 65 | I18: 13 | J18: 22 | K18: 13 | L18: 21 | M18: 16 | N18: 13 | O18: 16 | T18: 34 | V18: 34 | W18: 26 | X18: 31 | Y18: 34 | Z18: 31 | AE18: 15 | AG18: 15 | AI18: 10 | AJ18: 15 | AK18: 10
A19: 14 | B19: 3 | C19: Holden German | D19: 7 | E19: 187 | F19: -82 | G19: 16.57142857 | H19: 75 | I19: 15 | J19: 19 | K19: 11 | L19: 17 | M19: 21 | N19: 14 | O19: 19 | T19: 32 | U19: 28 | V19: 36 | W19: 30 | Y19: 33 | Z19: 28 | AE19: 15 | AF19: 10 | AG19: 15 | AH19: 10 | AJ19: 15 | AK19: 10
A20: 15 | B20: 18 | C20: Matt Moermond | D20: 7 | E20: 179 | F20: -90 | G20: 18 | H20: 65 | I20: 19 | J20: 16 | K20: 19 | L20: 19 | M20: 23 | N20: 17 | O20: 13 | T20: 28 | U20: 31 | V20: 28 | W20: 28 | Y20: 30 | Z20: 34 | AE20: 10 | AF20: 10 | AG20: 10 | AH20: 10 | AJ20: 10 | AK20: 15
A21: 16 | B21: 19 | C21: Willie Ridenhour | D21: 5 | E21: 173 | F21: -96 | G21: 12.4 | H21: 85 | I21: 8 | J21: 10 | K21: 23 | L21: 13 | M21: 8 | T21: 39 | U21: 37 | V21: 24 | W21: 34 | X21: 39 | AE21: 25 | AF21: 20 | AH21: 15 | AI21: 25
A22: 17 | B22: 49 | C22: Carson Poindexter | D22: 5 | E22: 161 | F22: -108 | G22: 14.8 | H22: 65 | I22: 20 | J22: 12 | K22: 16 | M22: 14 | O22: 12 | T22: 27 | U22: 35 | V22: 31 | X22: 33 | Z22: 35 | AE22: 10 | AF22: 15 | AG22: 10 | AI22: 15 | AK22: 15
A23: 18 | B23: 10 | C23: Jack Fread | D23: 5 | E23: 152 | F23: -117 | G23: 16.6 | H23: 50 | K23: 22 | L23: 10 | M23: 22 | N23: 9 | O23: 20 | V23: 25 | W23: 37 | X23: 25 | Y23: 38 | Z23: 27 | AH23: 20 | AJ23: 20 | AK23: 10
A24: 19 | B24: 40 | C24: Garrett Biggers | D24: 5 | E24: 144 | F24: -125 | G24: 18.2 | H24: 35 | I24: 16 | J24: 23 | L24: 22 | M24: 11 | N24: 19 | T24: 31 | U24: 24 | W24: 25 | X24: 36 | Y24: 28 | AE24: 10 | AI24: 15 | AJ24: 10
A25: 20 | B25: 9 | C25: Austin Halder | D25: 4 | E25: 142 | F25: -127 | G25: 11.5 | H25: 65 | I25: 11 | J25: 14 | K25: 10 | L25: 11 | T25: 36 | U25: 33 | V25: 37 | W25: 36 | AE25: 15 | AF25: 15 | AG25: 20 | AH25: 15
A26: 21 | B26: 97 | C26: Nate Tretow | D26: 4 | E26: 124 | F26: -145 | G26: 16 | H26: 50 | L26: 16 | M26: 10 | N26: 20 | O26: 18 | W26: 31 | X26: 37 | Y26: 27 | Z26: 29 | AH26: 10 | AI26: 20 | AJ26: 10 | AK26: 10
A27: 22 | B27: 7 | C27: Austin Langenstein | D27: 4 | E27: 123 | F27: -146 | G27: 10.5 | H27: 120 | I27: 5 | K27: 7 | L27: 6 | M27: 24 | T27: 42 | V27: 40 | W27: 41 | X27: DQ | AE27: 50 | AG27: 30 | AH27: 40
A28: 23 | B28: 6 | C28: Steven Brewer Jr | D28: 3 | E28: 96 | F28: -173 | G28: 15 | H28: 30 | I28: 12 | J28: 21 | K28: 12 | T28: 35 | U28: 26 | V28: 35 | AE28: 15 | AG28: 15
A29: 24 | B29: 32 | C29: Jordan Mander | D29: 3 | E29: 81 | F29: -188 | G29: 20 | H29: 20 | I29: 18 | J29: 18 | K29: 24 | T29: 29 | U29: 29 | V29: 23 | AE29: 10 | AF29: 10
A30: 25 | B30: 11 | C30: Brad Lowmaster | D30: 2 | E30: 76 | F30: -193 | G30: 9 | H30: 90 | J30: 15 | K30: 3 | U30: 32 | V30: 44 | AF30: 15 | AG30: 75
A31: 26 | B31: 22 | C31: Brandon Lemke | D31: 2 | E31: 75 | F31: -194 | G31: 9.5 | H31: 40 | J31: 11 | K31: 8 | U31: 36 | V31: 39 | AF31: 15 | AG31: 25
A32: 27 | B32: 84 | C32: Nicholas Landi | D32: 2 | E32: 62 | F32: -207 | G32: 16 | H32: 25 | N32: 18 | O32: 14 | Y32: 29 | Z32: 33 | AJ32: 10 | AK32: 15
A33: 28 | B33: 33N | C33: Robert Norfleet | D33: 2 | E33: 62 | F33: -207 | G33: 16 | H33: 25 | L33: 15 | O33: 17 | W33: 32 | Z33: 30 | AH33: 15 | AK33: 10
A34: 29 | B34: 12 | C34: Jensen Jorgensen | D34: 2 | E34: 58 | F34: -211 | G34: 18 | H34: 15 | M34: 15 | N34: 21 | X34: 32 | Y34: 26 | AI34: 15
A35: 30 | B35: 4 | C35: John Holleman | D35: 2 | E35: 44 | F35: -225 | G35: 13.5 | H35: 75 | I35: 3 | J35: 24 | T35: 44 | U35: 0 | AE35: 75
A36: 31 | B36: 31 | C36: Ryan Polenz | D36: 1 | E36: 40 | F36: -229 | G36: 7 | H36: 30 | N36: 7 | Y36: 40 | AJ36: 30
A37: 32 | B37: 87 | C37: Zach Miller | D37: 1 | E37: 38 | F37: -231 | G37: 9 | H37: 20 | I37: 9 | T37: 38 | AE37: 20
A38: 33 | B38: 25 | C38: Christopher Clanton | D38: 1 | E38: 33 | F38: -236 | G38: 14 | H38: 15 | L38: 14 | W38: 33 | AH38: 15
A39: 34 | B39: 23 | C39: Cody Leland | D39: 1 | E39: 30 | F39: -239 | G39: 17 | H39: 10 | M39: 17 | X39: 30 | AI39: 10
A40: 35 | B40: 29 | C40: Jeff Oliver | D40: 1 | E40: 27 | F40: -242 | G40: 20 | H40: 10 | M40: 20 | X40: 27 | AI40: 10
A41: 36 | B41: 33 | C41: Brian Obiedzenski | D41: 1 | E41: 26 | F41: -243 | G41: 21 | H41: 0 | I41: 21 | T41: 26
A42: 37 | B42: 7M | C42: Ryan Miller | D42: 1 | E42: 23 | F42: -246 | G42: 24 | H42: 0 | I42: 24 | T42: 23
A43: 38 | D43: 0 | E43: 0 | F43: -269 | H43: 0
A44: 39 | D44: 0 | E44: 0 | F44: -269 | H44: 0
A45: 40 | D45: 0 | E45: 0 | F45: -269 | H45: 0
I46: =COUNTA(I6:I45) -> 25 | J46: 24 | K46: 24 | L46: 22 | M46: 24 | N46: 21 | O46: 20 | P46: 0 | Q46: 0 | R46: 0 | T46: =COUNTA(T6:T45) -> 22 | U46: =COUNTA(U7:U45) -> 22 | V46: =COUNTA(V6:V45) -> 23 | W46: 19 | X46: 21 | Y46: 21 | Z46: 20 | AA46: 0 | AB46: 0 | AC46: 0 | AE46: =SUM(AE6:AE45) -> 695 | AF46: 695 | AG46: 695 | AH46: 695 | AI46: 695 | AJ46: 695 | AK46: 695 | AL46: 0 | AM46: 0 | AN46: 0
A47: Total Events | D47: 7
A48: Track Point Races | D48: 7 | X48: POLE WINNER POINTS IN BOLD
A49: Total Purse Payout | D49: =SUM(AE46:AN46) -> 4865
A50: Avg. Entries | D50: =SUM(I46:Q46)/7 -> 22.85714286

Sheet Masters
A1: 2016 BOJANGLES SUMMER SHOOTOUT SERIES - CHAMPIONSHIP STANDINGS
A3: (After Round 7 of 10 - July 19, 2016)
A4: MASTERS | I4: Weekly Finishes | T4: Weekly Points | AE4: Weekly Earnings
D5: Races | E5: Total | F5: Points | G5: Average | H5: Total | I5: 2016-06-14 | J5: 2016-06-20 | K5: 2016-06-21 | L5: 2016-06-28 | M5: 2016-07-05 | N5: 2016-07-12 | O5: 2016-07-19 | P5: 2016-07-26 | Q5: 2016-08-01 | R5: 2016-08-02 | S5: 00:00:00 | T5: 2016-06-14 | U5: 2016-06-20 | V5: 2016-06-21 | W5: 2016-06-28 | X5: 2016-07-05 | Y5: 2016-07-12 | Z5: 2016-07-19 | AA5: 2016-07-26 | AB5: 2016-08-01 | AC5: 2016-08-02 | AE5: 2016-06-14 | AF5: 2016-06-20 | AG5: 2016-06-21 | AH5: 2016-06-28 | AI5: 2016-07-05 | AJ5: 2016-07-12 | AK5: 2016-07-19 | AL5: 2016-07-26 | AM5: 2016-08-01 | AN5: 2016-08-02
A6: Pos. | B6: Car # | C6: Driver | D6: Entered | E6: Points | F6: Back | G6: Finish | H6: Earnings
A7: 1 | B7: 12 | C7: Robby Faggart | D7: =COUNTA(I7:R7) -> 7 | E7: =SUM(T7:AD7) -> 294 | F7: =E7-$E$7 -> 0 | G7: =AVERAGEA(I7:R7) -> 2 | H7: =SUM(AE7:AN7) -> 1190 | I7: 1 | J7: 2 | K7: 6 | L7: 1 | M7: 1 | N7: 1 | O7: 2 | T7: 51 | U7: 45 | V7: 1 | W7: 50 | X7: 51 | Y7: 51 | Z7: 45 | AE7: 225 | AF7: 120 | AG7: 50 | AH7: 225 | AI7: 225 | AJ7: 225 | AK7: 120
A8: 2 | B8: 58 | C8: Carl Cormier | D8: =COUNTA(I8:R8) -> 7 | E8: =SUM(T8:AD8) -> 267 | F8: =E8-$E$7 -> -27 | G8: =AVERAGEA(I8:R8) -> 3 | H8: =SUM(AE8:AN8) -> 650 | I8: 2 | J8: 3 | K8: 2 | L8: 3 | M8: 2 | N8: 3 | O8: 6 | T8: 45 | U8: 44 | V8: 45 | W8: 44 | X8: 45 | Y8: 44 | AE8: 120 | AF8: 80 | AG8: 120 | AH8: 80 | AI8: 120 | AJ8: 80 | AK8: 50
A9: 4 | B9: 09 | C9: Scott Whitaker | D9: =COUNTA(I9:R9) -> 7 | E9: =SUM(T9:AD9) -> 260 | F9: =E9-$E$7 -> -34 | G9: =AVERAGEA(I9:R9) -> 5.285714286 | H9: =SUM(AE9:AN9) -> 540 | I9: 3 | J9: 4 | K9: 1 | L9: 7 | M9: 6 | N9: 5 | O9: 11 | T9: 44 | U9: 43 | V9: 50 | W9: 40 | X9: 41 | Y9: 42 | AE9: 80 | AF9: 70 | AG9: 225 | AH9: 40 | AI9: 50 | AJ9: 60 | AK9: 15
A10: 3 | B10: 50 | C10: Todd Midas | D10: =COUNTA(I10:R10) -> 7 | E10: =SUM(T10:AD10) -> 258 | F10: =E10-$E$7 -> -36 | G10: =AVERAGEA(I10:R10) -> 6.142857143 | H10: =SUM(AE10:AN10) -> 520 | I10: 6 | J10: 1 | K10: 15 | L10: 5 | M10: 7 | N10: 6 | O10: 3 | T10: 41 | U10: 50 | W10: 42 | X10: 40 | Y10: 41 | Z10: 44 | AE10: 50 | AF10: 225 | AG10: 15 | AH10: 60 | AI10: 40 | AJ10: 50 | AK10: 80
A11: 5 | B11: 53 | C11: Bruce Silver | D11: =COUNTA(I11:R11) -> 7 | E11: =SUM(T11:AD11) -> 250 | F11: =E11-$E$7 -> -44 | G11: =AVERAGEA(I11:R11) -> 6.142857143 | H11: =SUM(AE11:AN11) -> 350 | I11: 4 | J11: 7 | K11: 5 | L11: 6 | M11: 3 | N11: 8 | O11: 10 | T11: 43 | U11: 40 | V11: 42 | W11: 42 | X11: 44 | Y11: 39 | AE11: 70 | AF11: 40 | AG11: 60 | AH11: 50 | AI11: 80 | AJ11: 30 | AK11: 20
A12: 6 | B12: 7 | C12: Jan Ingram | D12: =COUNTA(I12:R12) -> 7 | E12: =SUM(T12:AD12) -> 237 | F12: =E12-$E$7 -> -57 | G12: =AVERAGEA(I12:R12) -> 8.714285714 | H12: =SUM(AE12:AN12) -> 280 | I12: 5 | J12: 5 | K12: 16 | L12: 9 | M12: 4 | N12: 7 | O12: 15 | T12: 42 | U12: 42 | W12: 38 | X12: 43 | Y12: 40 | Z12: 32 | AE12: 60 | AF12: 60 | AG12: 10 | AH12: 25 | AI12: 70 | AJ12: 40 | AK12: 15
A13: 7 | B13: 2 | C13: Timothy Sipes | D13: =COUNTA(I13:R13) -> 7 | E13: =SUM(T13:AD13) -> 220 | F13: =E13-$E$7 -> -74 | G13: =AVERAGEA(I13:R13) -> 10.57142857 | H13: =SUM(AE13:AN13) -> 155 | I13: 12 | J13: 12 | K13: 11 | L13: 10 | M13: 12 | N13: 12 | O13: 5 | T13: 35 | V13: 36 | W13: 37 | X13: 35 | Y13: 35 | Z13: 42 | AE13: 15 | AF13: 15 | AG13: 15 | AH13: 20 | AI13: 15 | AJ13: 15 | AK13: 60
A14: 8 | B14: 76 | C14: Jamie Smith | D14: =COUNTA(I14:R14) -> 6 | E14: =SUM(T14:AD14) -> 215 | F14: =E14-$E$7 -> -79 | G14: =AVERAGEA(I14:R14) -> 11.16666667 | H14: =SUM(AE14:AN14) -> 110 | J14: 14 | K14: 10 | L14: 11 | M14: 8 | N14: 11 | O14: 13 | U14: 33 | V14: 37 | W14: 36 | X14: 39 | Y14: 36 | Z14: 34 | AF14: 15 | AG14: 20 | AH14: 15 | AI14: 30 | AJ14: 15 | AK14: 15
A15: 9 | B15: 00 | C15: Chip Ferguson | D15: =COUNTA(I15:R15) -> 5 | E15: =SUM(T15:AD15) -> 208 | F15: =E15-$E$7 -> -86 | G15: =AVERAGEA(I15:R15) -> 5.4 | H15: =SUM(AE15:AN15) -> 280 | I15: 7 | J15: 8 | K15: 3 | L15: 4 | M15: 5 | T15: 40 | U15: 39 | V15: 44 | W15: 43 | X15: 42 | AE15: 40 | AF15: 30 | AG15: 80 | AH15: 70 | AI15: 60
A16: 10 | B16: 20 | C16: Mark Green | D16: =COUNTA(I16:R16) -> 5 | E16: =SUM(T16:AD16) -> 205 | F16: =E16-$E$7 -> -89 | G16: =AVERAGEA(I16:R16) -> 6.4 | H16: =SUM(AE16:AN16) -> 350 | I16: 8 | J16: 16 | L16: 2 | N16: 2 | O16: 4 | T16: 39 | U16: 32 | W16: 45 | Y16: 45 | Z16: 44 | AE16: 30 | AF16: 10 | AH16: 120 | AJ16: 120 | AK16: 70
A17: 11 | B17: 10 | C17: Jeff Lefcourt | D17: =COUNTA(I17:R17) -> 5 | E17: =SUM(T17:AD17) -> 203 | F17: =E17-$E$7 -> -91 | G17: =AVERAGEA(I17:R17) -> 7.2 | H17: =SUM(AE17:AN17) -> 330 | I17: 10 | K17: 8 | L17: 8 | N17: 9 | O17: 1 | T17: 37 | V17: 39 | W17: 39 | Y17: 38 | Z17: 50 | AE17: 20 | AG17: 30 | AH17: 30 | AJ17: 25 | AK17: 225
A18: 12 | B18: 27 | C18: Tom Sherman | D18: =COUNTA(I18:R18) -> 5 | E18: =SUM(T18:AD18) -> 191 | F18: =E18-$E$7 -> -103 | G18: =AVERAGEA(I18:R18) -> 8.8 | H18: =SUM(AE18:AN18) -> 175 | I18: 9 | J18: 6 | K18: 13 | N18: 4 | O18: 12 | T18: 38 | U18: 41 | V18: 34 | Y18: 43 | Z18: 35 | AE18: 25 | AF18: 50 | AG18: 15 | AJ18: 70 | AK18: 15
A19: 13 | B19: 28 | C19: Chares Parker | D19: =COUNTA(I19:R19) -> 4 | E19: =SUM(T19:AD19) -> 145 | F19: =E19-$E$7 -> -149 | G19: =AVERAGEA(I19:R19) -> 10.75 | H19: =SUM(AE19:AN19) -> 80 | J19: 13 | K19: 12 | M19: 9 | O19: 9 | U19: 34 | V19: 35 | X19: 38 | Z19: 38 | AF19: 15 | AG19: 15 | AI19: 25 | AK19: 25
A20: 14 | B20: 2D | C20: David Green | D20: =COUNTA(I20:R20) -> 4 | E20: =SUM(T20:AD20) -> 135 | F20: =E20-$E$7 -> -159 | G20: =AVERAGEA(I20:R20) -> 13.25 | H20: =SUM(AE20:AN20) -> 60 | K20: 14 | L20: 12 | N20: 13 | O20: 14 | V20: 33 | W20: 35 | Y20: 34 | Z20: 33 | AG20: 15 | AH20: 15 | AJ20: 15 | AK20: 15
A21: 15 | B21: 11 | C21: Dan Keaton | D21: =COUNTA(I21:R21) -> 3 | E21: =SUM(T21:AD21) -> 114 | F21: =E21-$E$7 -> -180 | G21: =AVERAGEA(I21:R21) -> 9 | H21: =SUM(AE21:AN21) -> 80 | I21: 11 | J21: 9 | K21: 7 | T21: 36 | U21: 38 | V21: 40 | AE21: 15 | AF21: 25 | AG21: 40
A22: 16 | B22: 18 | C22: Les Miranda | D22: =COUNTA(I22:R22) -> 3 | E22: =SUM(T22:AD22) -> 112 | F22: =E22-$E$7 -> -182 | G22: =AVERAGEA(I22:R22) -> 9.666666667 | H22: =SUM(AE22:AN22) -> 65 | M22: 11 | N22: 10 | O22: 8 | X22: 36 | Y22: 37 | Z22: 39 | AI22: 15 | AJ22: 20 | AK22: 30
A23: 17 | B23: 15 | C23: Danny Cisson | D23: =COUNTA(I23:R23) -> 2 | E23: =SUM(T23:AD23) -> 80 | F23: =E23-$E$7 -> -214 | G23: =AVERAGEA(I23:R23) -> 7 | H23: =SUM(AE23:AN23) -> 90 | J23: 10 | K23: 4 | U23: 37 | V23: 43 | AF23: 20 | AG23: 70
A24: 18 | B24: 36 | C24: Craig Bruce | D24: =COUNTA(I24:R24) -> 2 | E24: =SUM(T24:AD24) -> 74 | F24: =E24-$E$7 -> -220 | G24: =AVERAGEA(I24:R24) -> 10 | H24: =SUM(AE24:AN24) -> 40 | J24: 11 | K24: 9 | U24: 36 | V24: 38 | AF24: 15 | AG24: 25
A25: 19 | B25: 82 | C25: Todd Shockman | D25: =COUNTA(I25:R25) -> 1 | E25: =SUM(T25:AD25) -> 40 | F25: =E25-$E$7 -> -254 | G25: =AVERAGEA(I25:R25) -> 7 | H25: =SUM(AE25:AN25) -> 40 | O25: 7 | Z25: 40 | AK25: 40
A26: 20 | B26: 21 | C26: Joel Carlyle | D26: =COUNTA(I26:R26) -> 1 | E26: =SUM(T26:AD26) -> 37 | F26: =E26-$E$7 -> -257 | G26: =AVERAGEA(I26:R26) -> 10 | H26: =SUM(AE26:AN26) -> 20 | M26: 10 | X26: 37 | AI26: 20
A27: 21 | B27: 1C | C27: Jon Craig | D27: =COUNTA(I27:R27) -> 1 | E27: =SUM(T27:AD27) -> 34 | F27: =E27-$E$7 -> -260 | G27: =AVERAGEA(I27:R27) -> 13 | H27: =SUM(AE27:AN27) -> 15 | I27: 13 | T27: 34 | AE27: 15
A28: 22 | B28: 46 | C28: Rick Fleming | D28: =COUNTA(I28:R28) -> 1 | E28: =SUM(T28:AD28) -> 32 | F28: =E28-$E$7 -> -262 | G28: =AVERAGEA(I28:R28) -> 15 | H28: =SUM(AE28:AN28) -> 15 | J28: 15 | U28: 32 | AF28: 15
A29: 23 | D29: =COUNTA(I29:R29) -> 0 | E29: =SUM(T29:AD29) -> 0 | F29: =E29-$E$7 -> -294 | G29: =AVERAGEA(I29:R29) ->  | H29: =SUM(AE29:AN29) -> 0
A30: 24
A31: 25
A32: 26
A33: 27
A34: 28
A35: 29
A36: 30
I37: =COUNTA(I7:I36) -> 13 | J37: =COUNTA(J7:J36) -> 16 | K37: =COUNTA(K7:K36) -> 16 | L37: =+COUNTA(L7:L36) -> 12 | M37: =COUNTA(M7:M36) -> 12 | N37: =COUNTA(N7:N36) -> 13 | O37: =COUNTA(O7:O36) -> 15 | P37: =COUNTA(P7:P36) -> 0 | Q37: =COUNTA(Q7:Q36) -> 0 | R37: =COUNTA(R7:R36) -> 0 | T37: =COUNTA(T7:T36) -> 13 | U37: =COUNTA(U7:U36) -> 15 | V37: =COUNTA(V7:V36) -> 14 | W37: =COUNTA(W7:W36) -> 12 | X37: =COUNTA(X7:X36) -> 12 | Y37: =COUNTA(Y7:Y36) -> 13 | Z37: =COUNTA(Z7:Z36) -> 12 | AA37: =COUNTA(AA7:AA36) -> 0 | AB37: =COUNTA(AB7:AB36) -> 0 | AC37: =COUNTA(AC7:AC36) -> 0 | AE37: =SUM(AE7:AE36) -> 765 | AF37: =SUM(AF7:AF36) -> 805 | AG37: =SUM(AG7:AG36) -> 805 | AH37: =SUM(AH7:AH36) -> 750 | AI37: =SUM(AI7:AI36) -> 750 | AJ37: =SUM(AJ7:AJ36) -> 765 | AK37: =SUM(AK7:AK36) -> 795 | AL37: =SUM(AL7:AL36) -> 0 | AM37: =SUM(AM7:AM36) -> 0 | AN37: =SUM(AN7:AN36) -> 0
A38: Total Events | D38: 7
A39: Track Point Races | D39: 7 | X39: POLE WINNER POINTS IN BOLD
A40: Total Purse Payout | D40: =SUM(AE37:AN37) -> 5435
A41: Avg. Entries | D41: =SUM(I37:R37)/7 -> 13.85714286

Sheet Pro
A1: 2016 BOJANGLES SUMMER SHOOTOUT SERIES - CHAMPIONSHIP STANDINGS
A3: (After Round 7 of 10 - July 19, 2016)
A4: IN LIGHT WELLNESS PROS | I4: Weekly Finishes | T4: Weekly Points | AE4: Weekly Earnings
D5: Races | E5: Total | F5: Points | G5: Average | H5: Total | I5: 2016-06-14 | J5: 2016-06-20 | K5: 2016-06-21 | L5: 2016-06-28 | M5: 2016-07-05 | N5: 2016-07-12 | O5: 2016-07-19 | P5: 2016-07-26 | Q5: 2016-08-01 | R5: 2016-08-02 | S5: 00:00:00 | T5: 2016-06-14 | U5: 2016-06-20 | V5: 2016-06-21 | W5: 2016-06-28 | X5: 2016-07-05 | Y5: 2016-07-12 | Z5: 2016-07-19 | AA5: 2016-07-26 | AB5: 2016-08-01 | AC5: 2016-08-02 | AE5: 2016-06-14 | AF5: 2016-06-20 | AG5: 2016-06-21 | AH5: 2016-06-28 | AI5: 2016-07-05 | AJ5: 2016-07-12 | AK5: 2016-07-19 | AL5: 2016-07-26 | AM5: 2016-08-01 | AN5: 2016-08-02
A6: Pos. | B6: Car # | C6: Driver | D6: Entered | E6: Points | F6: Back | G6: Finish | H6: Earnings
A7: 1 | B7: 14 | C7: Jordan Black | D7: =COUNTA(I7:R7) -> 7 | E7: =SUM(T7:AD7) -> 276 | F7: =E7-$E$7 -> 0 | G7: =AVERAGEA(I7:R7) -> 3 | H7: =SUM(AE7:AN7) -> 935 | I7: 2 | J7: 6 | K7: 1 | L7: 4 | M7: 3 | N7: 1 | O7: 4 | T7: 45 | V7: 50 | W7: 43 | X7: 44 | Y7: 51 | Z7: 43 | AE7: 125 | AF7: 60 | AG7: 250 | AH7: 75 | AI7: 100 | AJ7: 250 | AK7: 75
A8: =A7+1 -> 2 | B8: 8 | C8: Chase Purdy | D8: 7 | E8: 275 | F8: -1 | G8: 3.285714286 | H8: 900 | I8: 1 | J8: 4 | K8: 4 | L8: 1 | M8: 4 | N8: 7 | O8: 2 | T8: 50 | U8: 43 | V8: 44 | W8: 50 | X8: 43 | Z8: 45 | AE8: 250 | AF8: 75 | AG8: 75 | AH8: 250 | AI8: 75 | AJ8: 50 | AK8: 125
A9: 3 | B9: 91 | C9: Stevie Johns | D9: 7 | E9: 268 | F9: -8 | G9: 3.571428571 | H9: 785 | I9: 7 | J9: 2 | K9: 2 | L9: 3 | M9: 6 | N9: 4 | O9: 1 | U9: 45 | V9: 45 | W9: 44 | X9: 41 | Y9: 43 | Z9: 50 | AE9: 50 | AF9: 125 | AG9: 125 | AH9: 100 | AI9: 60 | AJ9: 75 | AK9: 250
A10: 4 | B10: 48 | C10: Austin Green | D10: 7 | E10: 266 | F10: -10 | G10: 4.571428571 | H10: 715 | I10: 5 | J10: 1 | K10: 12 | L10: 2 | M10: 2 | N10: 5 | O10: 5 | T10: 42 | U10: 50 | W10: 45 | X10: 45 | Y10: 42 | Z10: 42 | AE10: 65 | AF10: 250 | AG10: 20 | AH10: 125 | AI10: 125 | AJ10: 65 | AK10: 65
A11: 5 | B11: 15 | C11: Michael Torres | D11: 7 | E11: 260 | F11: -16 | G11: 4.571428571 | H11: 585 | I11: 6 | J11: 3 | K11: 3 | L11: 10 | M11: 5 | N11: 2 | O11: 3 | T11: 41 | U11: 44 | V11: 44 | X11: 42 | Y11: 45 | Z11: 44 | AE11: 60 | AF11: 100 | AG11: 100 | AH11: 35 | AI11: 65 | AJ11: 125 | AK11: 100
A12: 6 | B12: 116 | C12: Alex Pacheco | D12: 7 | E12: 247 | F12: -29 | G12: 6.571428571 | H12: 410 | I12: 3 | J12: 5 | K12: 5 | L12: 6 | M12: 7 | N12: 11 | O12: 9 | T12: 44 | U12: 42 | V12: 42 | W12: 41 | X12: 40 | Z12: 38 | AE12: 100 | AF12: 65 | AG12: 65 | AH12: 60 | AI12: 50 | AJ12: 30 | AK12: 40
A13: 7 | B13: 12 | C13: Dillon Faggart | D13: 7 | E13: 243 | F13: -33 | G13: 8 | H13: 490 | I13: 8 | J13: 11 | K13: 11 | L13: 11 | M13: 1 | N13: 8 | O13: 6 | T13: 40 | V13: 36 | W13: 36 | X13: 50 | Y13: 39 | Z13: 42 | AE13: 45 | AF13: 30 | AG13: 30 | AH13: 30 | AI13: 250 | AJ13: 45 | AK13: 60
A14: 8 | B14: 11 | C14: Dawson Cram | D14: 6 | E14: 234 | F14: -42 | G14: 8 | H14: 275 | I14: 9 | J14: 8 | K14: 8 | L14: 7 | N14: 6 | O14: 10 | T14: 38 | U14: 39 | V14: 39 | W14: 40 | Y14: 41 | Z14: 37 | AE14: 40 | AF14: 45 | AG14: 45 | AH14: 50 | AJ14: 60 | AK14: 35
A15: 9 | B15: 4 | C15: John Holleman | D15: 5 | E15: 201 | F15: -75 | G15: 6.8 | H15: 285 | K15: 7 | L15: 8 | M15: 8 | N15: 3 | O15: 8 | V15: 40 | W15: 39 | X15: 39 | Y15: 44 | Z15: 39 | AG15: 50 | AH15: 45 | AI15: 45 | AJ15: 100 | AK15: 45
A16: 10 | B16: 3 | C16: Michael Womack | D16: 4 | E16: 167 | F16: -109 | G16: 5.5 | H16: 250 | I16: 4 | J16: 7 | K16: 6 | L16: 5 | T16: 43 | U16: 41 | V16: 41 | W16: 42 | AE16: 75 | AF16: 50 | AG16: 60 | AH16: 65
A17: 11 | B17: 44 | C17: Dusty Summers | D17: 3 | E17: 111 | F17: -165 | G17: 10 | H17: 105 | I17: 11 | J17: 9 | K17: 10 | T17: 36 | U17: 38 | V17: 37 | AE17: 30 | AF17: 40 | AG17: 35
A18: 12 | B18: 3A | C18: Andrew Brown | D18: 2 | E18: 75 | F18: -201 | G18: 9.5 | H18: 75 | J18: 10 | K18: 9 | U18: 37 | V18: 38 | AF18: 35 | AG18: 40
A19: 13 | B19: 1 | C19: Jarred Irvan | D19: 3 | E19: 73 | F19: -203 | G19: 10.66666667 | H19: 55 | L19: 13 | M19: 10 | N19: 9 | W19: 34 | X19: 1 | Y19: 38 | AH19: 15 | AJ19: 40
A20: 14 | B20: 24 | C20: Ricky Schlick | D20: 1 | E20: 40 | F20: -236 | G20: 7 | H20: 50 | O20: 7 | Z20: 40 | AK20: 50
A21: 15 | B21: 28 | C21: Ryan MacKintosh | D21: 1 | E21: 38 | F21: -238 | G21: 9 | H21: 40 | M21: 9 | X21: 38 | AI21: 40
A22: 16 | B22: 2 | C22: Matthew Barnard | D22: 1 | E22: 38 | F22: -238 | G22: 9 | H22: 40 | L22: 9 | W22: 38 | AH22: 40
A23: 17 | B23: 5 | C23: Michael Dabney Jr | D23: 1 | E23: 37 | F23: -239 | G23: 10 | H23: 35 | N23: 10 | Y23: 37 | AJ23: 35
A24: 18 | B24: 54 | C24: Gregory Lang | D24: 1 | E24: 37 | F24: -239 | G24: 10 | H24: 35 | I24: 10 | T24: 37 | AE24: 35
A25: 19 | B25: 7 | C25: Dillion Spain | D25: 1 | E25: 36 | F25: -240 | G25: 11 | H25: 30 | O25: 11 | Z25: 36 | AK25: 30
A26: 20 | B26: 51 | C26: Carson Ferguson | D26: 1 | E26: 36 | F26: -240 | G26: 12 | H26: 20 | L26: 12 | W26: 36 | AH26: 20
A27: 21
A28: =A27+1 -> 22
A29: 23
A30: 24
A31: 25
A32: 26
A33: 27
A34: 28
A35: 29
A36: 30
I37: =COUNTA(I7:I36) -> 11 | J37: 11 | K37: 12 | L37: 13 | M37: 10 | N37: 11 | O37: 11 | P37: 0 | Q37: 0 | R37: 0 | T37: =COUNTA(T7:T36) -> 10 | U37: 9 | V37: 11 | W37: =COUNTA(W7:W36) -> 12 | X37: 10 | Y37: 9 | Z37: 11 | AA37: 0 | AB37: 0 | AC37: 0 | AE37: =SUM(AE7:AE36) -> 875 | AF37: 875 | AG37: 895 | AH37: 910 | AI37: 810 | AJ37: 875 | AK37: 875 | AL37: 0 | AM37: 0 | AN37: 0
A38: Total Events | D38: 7
A39: Track Point Races | D39: 7 | X39: POLE WINNER POINTS IN BOLD
A40: Total Purse Payout | D40: 3555
A41: Avg. Entries | D41: =SUM(I37:R37)/7 -> 11.28571429

Sheet Sheet1 (hidden)
